[Event "Titled Tuesday Blitz September 27 Early 2022"]
[White "Lazavik, Denis"]
[Black "Pultinevicius, Paulius"]
[WhiteFideId "13515110"]
[BlackFideId "12809390"]
[WhiteElo "2437"]
[BlackElo "2472"]
[Result "1-0"]
[Round "08"]
[TimeControl "180+1"]
[Date "2022.09.27"]
[WhiteClock "0:00:09"]
[BlackClock "0:00:02"]

1. d4 {[%clk 0:03:00]}  d5 {[%clk 0:02:58]} 2. c4 {[%clk 0:03:01]}  dxc4 {[%clk 0:02:59]} 3. Nf3 {[%clk 0:03:01]}  Nf6 {[%clk 0:02:58]} 4. e3 {[%clk 0:03:01]}  e6 {[%clk 0:02:58]} 5. Bxc4 {[%clk 0:03:02]}  a6 {[%clk 0:02:59]} 6. O-O {[%clk 0:03:02]}  c5 {[%clk 0:02:58]} 7. b3 {[%clk 0:02:59]}  b5 {[%clk 0:02:56]} 8. Be2 {[%clk 0:02:58]}  Nbd7 {[%clk 0:02:56]} 9. Bb2 {[%clk 0:02:54]}  Bb7 {[%clk 0:02:56]} 10. a4 {[%clk 0:02:54]}  b4 {[%clk 0:02:55]} 11. Nbd2 {[%clk 0:02:53]}  Be7 {[%clk 0:02:55]} 12. Nc4 {[%clk 0:02:48]}  O-O {[%clk 0:02:52]} 13. Nfe5 {[%clk 0:02:46]}  Nxe5 {[%clk 0:02:38]} 14. dxe5 {[%clk 0:02:44]}  Nd5 {[%clk 0:02:38]} 15. Qc2 {[%clk 0:02:40]}  Qc7 {[%clk 0:02:35]} 16. Rfd1 {[%clk 0:02:35]}  Rad8 {[%clk 0:02:27]} 17. Rac1 {[%clk 0:02:31]}  Rc8 {[%clk 0:01:57]} 18. Nd6 {[%clk 0:02:28]}  Bxd6 {[%clk 0:01:42]} 19. exd6 {[%clk 0:02:27]}  Qd7 {[%clk 0:01:43]} 20. e4 {[%clk 0:02:21]}  Nf4 {[%clk 0:01:41]} 21. Bc4 {[%clk 0:02:16]}  f6 {[%clk 0:01:33]} 22. Qd2 {[%clk 0:01:58]}  Ng6 {[%clk 0:01:33]} 23. Qe3 {[%clk 0:01:56]}  Rc6 {[%clk 0:01:32]} 24. e5 {[%clk 0:01:44]}  f5 {[%clk 0:01:29]} 25. f4 {[%clk 0:01:40]}  h6 {[%clk 0:01:12]} 26. Bf1 {[%clk 0:01:37]}  Kh7 {[%clk 0:01:09]} 27. Rc4 {[%clk 0:01:29]}  Rcc8 {[%clk 0:01:01]} 28. Rdc1 {[%clk 0:01:28]}  Nh4 {[%clk 0:00:38]} 29. Rxc5 {[%clk 0:01:23]}  Rxc5 {[%clk 0:00:39]} 30. Rxc5 {[%clk 0:01:23]}  Rc8 {[%clk 0:00:40]} 31. Qd4 {[%clk 0:00:56]}  Rc6 {[%clk 0:00:21]} 32. Qxb4 {[%clk 0:00:48]}  Qf7 {[%clk 0:00:17]} 33. Rxc6 {[%clk 0:00:44]}  Bxc6 {[%clk 0:00:18]} 34. Qc3 {[%clk 0:00:43]}  Bd5 {[%clk 0:00:11]} 35. Qg3 {[%clk 0:00:39]}  Qa7+ {[%clk 0:00:11]} 36. Qf2 {[%clk 0:00:36]}  Qb7 {[%clk 0:00:06]} 37. Qxh4 {[%clk 0:00:36]}  Qxb3 {[%clk 0:00:07]} 38. Qf2 {[%clk 0:00:36]}  Qxa4 {[%clk 0:00:07]} 39. Qd4 {[%clk 0:00:35]}  Qc6 {[%clk 0:00:08]} 40. h3 {[%clk 0:00:31]}  a5 {[%clk 0:00:08]} 41. Kh2 {[%clk 0:00:30]}  a4 {[%clk 0:00:09]} 42. Qc3 {[%clk 0:00:28]}  Qb6 {[%clk 0:00:08]} 43. Ba3 {[%clk 0:00:26]}  Qf2 {[%clk 0:00:07]} 44. d7 {[%clk 0:00:18]}  Qxf1 {[%clk 0:00:04]} 45. Qd2 {[%clk 0:00:17]}  Bxg2 {[%clk 0:00:02]} 46. Qxg2 {[%clk 0:00:11]}  Qxf4+ {[%clk 0:00:02]} 47. Kh1 {[%clk 0:00:11]}  Qd4 {[%clk 0:00:02]} 48. Bd6 {[%clk 0:00:11]}  Qa1+ {[%clk 0:00:01]} 49. Kh2 {[%clk 0:00:11]}  a3 {[%clk 0:00:01]} 50. d8=Q {[%clk 0:00:11]}  Qd4 {[%clk 0:00:02]} 51. Qda8 {[%clk 0:00:08]}  Qf4+ {[%clk 0:00:02]} 52. Kh1 {[%clk 0:00:08]}  Qc1+ {[%clk 0:00:02]} 53. Qg1 {[%clk 0:00:09]} 1-0


[Site "https://www.chess.com"]

[Event "Titled Tuesday Blitz September 27 Early 2022"]
[White "Lohani, Sujana"]
[Black "Lakshmi C"]
[WhiteFideId "12311987"]
[BlackFideId "25035347"]
[WhiteElo "1691"]
[BlackElo "1775"]
[Result "1-0"]
[Round "08"]
[TimeControl "180+1"]
[Date "2022.09.27"]
[WhiteClock "0:02:10"]
[BlackClock "0:00:48"]

1. d4 {[%clk 0:03:00]}  Nf6 {[%clk 0:02:40]} 2. Bf4 {[%clk 0:03:00]}  d5 {[%clk 0:02:35]} 3. e3 {[%clk 0:02:59]}  e6 {[%clk 0:02:35]} 4. c3 {[%clk 0:02:58]}  Bd6 {[%clk 0:02:33]} 5. Bxd6 {[%clk 0:02:57]}  cxd6 {[%clk 0:02:20]} 6. Nd2 {[%clk 0:02:55]}  O-O {[%clk 0:02:12]} 7. f4 {[%clk 0:02:55]}  Ne4 {[%clk 0:02:10]} 8. Bd3 {[%clk 0:02:49]}  Qh4+ {[%clk 0:02:05]} 9. g3 {[%clk 0:02:49]}  Nxg3 {[%clk 0:02:02]} 10. hxg3 {[%clk 0:02:42]}  Qxh1 {[%clk 0:01:44]} 11. Nf3 {[%clk 0:02:41]}  f6 {[%clk 0:01:30]} 12. Qe2 {[%clk 0:02:37]}  Qh5 {[%clk 0:00:57]} 13. O-O-O {[%clk 0:02:31]}  Qe8 {[%clk 0:00:54]} 14. Qh2 {[%clk 0:02:23]}  f5 {[%clk 0:00:53]} 15. g4 {[%clk 0:02:21]}  Nc6 {[%clk 0:00:48]} 16. Ne2 {[%clk 0:02:10]} 1-0


[Site "https://www.chess.com"]

[Event "Titled Tuesday Blitz September 27 Early 2022"]
[White "Makhnev, Denis"]
[Black "Mahdavi, Reza"]
[WhiteFideId "13707647"]
[BlackFideId "12595926"]
[WhiteElo "2486"]
[BlackElo "2240"]
[Result "0-1"]
[Round "08"]
[TimeControl "180+1"]
[Date "2022.09.27"]
[WhiteClock "0:00:03"]
[BlackClock "0:00:20"]

1. d4 {[%clk 0:02:59]}  Nf6 {[%clk 0:02:59]} 2. c4 {[%clk 0:02:59]}  g6 {[%clk 0:02:59]} 3. g3 {[%clk 0:02:59]}  Bg7 {[%clk 0:02:59]} 4. Bg2 {[%clk 0:03:00]}  d6 {[%clk 0:03:00]} 5. Nc3 {[%clk 0:03:00]}  O-O {[%clk 0:03:00]} 6. Nf3 {[%clk 0:03:00]}  c5 {[%clk 0:03:01]} 7. d5 {[%clk 0:02:59]}  e6 {[%clk 0:03:00]} 8. O-O {[%clk 0:02:59]}  exd5 {[%clk 0:03:00]} 9. cxd5 {[%clk 0:03:00]}  a6 {[%clk 0:02:57]} 10. a4 {[%clk 0:03:00]}  Re8 {[%clk 0:02:55]} 11. Bf4 {[%clk 0:03:01]}  Qc7 {[%clk 0:02:47]} 12. Rc1 {[%clk 0:02:57]}  Nbd7 {[%clk 0:02:46]} 13. h3 {[%clk 0:02:56]}  b6 {[%clk 0:02:41]} 14. Re1 {[%clk 0:02:54]}  Bb7 {[%clk 0:02:41]} 15. e4 {[%clk 0:02:51]}  h6 {[%clk 0:02:38]} 16. b4 {[%clk 0:02:46]}  Nh5 {[%clk 0:02:24]} 17. Bd2 {[%clk 0:02:44]}  Re7 {[%clk 0:02:13]} 18. a5 {[%clk 0:02:42]}  bxa5 {[%clk 0:02:01]} 19. bxc5 {[%clk 0:02:41]}  Nxc5 {[%clk 0:01:59]} 20. Na4 {[%clk 0:02:42]}  Rae8 {[%clk 0:01:46]} 21. Nxc5 {[%clk 0:02:03]}  dxc5 {[%clk 0:01:47]} 22. Qa4 {[%clk 0:00:57]}  Nf6 {[%clk 0:01:11]} 23. Bxa5 {[%clk 0:00:50]}  Qb8 {[%clk 0:01:10]} 24. Rb1 {[%clk 0:00:24]}  Qa8 {[%clk 0:00:57]} 25. d6 {[%clk 0:00:11]}  Rxe4 {[%clk 0:00:56]} 26. Rxe4 {[%clk 0:00:11]}  Bxe4 {[%clk 0:00:55]} 27. Re1 {[%clk 0:00:06]}  Bc6 {[%clk 0:00:29]} 28. Qd1 {[%clk 0:00:05]}  Rxe1+ {[%clk 0:00:27]} 29. Nxe1 {[%clk 0:00:06]}  Bxg2 {[%clk 0:00:28]} 30. Nxg2 {[%clk 0:00:07]}  Nd7 {[%clk 0:00:29]} 31. Ne3 {[%clk 0:00:07]}  Bd4 {[%clk 0:00:28]} 32. Nc2 {[%clk 0:00:06]}  Qd5 {[%clk 0:00:27]} 33. Nxd4 {[%clk 0:00:06]}  cxd4 {[%clk 0:00:28]} 34. Bc7 {[%clk 0:00:06]}  d3 {[%clk 0:00:26]} 35. Qd2 {[%clk 0:00:06]}  Ne5 {[%clk 0:00:24]} 36. Qb4 {[%clk 0:00:01]}  d2 {[%clk 0:00:21]} 37. Qb8+ {[%clk 0:00:02]}  Kh7 {[%clk 0:00:21]} 38. Kh2 {[%clk 0:00:02]}  d1=Q {[%clk 0:00:20]} 39. Qb1 {[%clk 0:00:03]}  Q5h1# {[%clk 0:00:20]} 0-1


[Site "https://www.chess.com"]

[Event "Titled Tuesday Blitz September 27 Early 2022"]
[White "Martin Duque, Jesus"]
[Black "Samunenkov, Ihor"]
[WhiteFideId "2208954"]
[BlackFideId "14187086"]
[WhiteElo "2258"]
[BlackElo "2441"]
[Result "0-1"]
[Round "08"]
[TimeControl "180+1"]
[Date "2022.09.27"]
[WhiteClock "0:00:01"]
[BlackClock "0:00:24"]

1. Nf3 {[%clk 0:03:00]}  Nf6 {[%clk 0:02:57]} 2. b3 {[%clk 0:03:00]}  d5 {[%clk 0:02:51]} 3. Bb2 {[%clk 0:02:57]}  Bf5 {[%clk 0:02:51]} 4. g3 {[%clk 0:02:57]}  e6 {[%clk 0:02:51]} 5. Bg2 {[%clk 0:02:57]}  h6 {[%clk 0:02:52]} 6. O-O {[%clk 0:02:56]}  c6 {[%clk 0:02:52]} 7. d3 {[%clk 0:02:55]}  Be7 {[%clk 0:02:50]} 8. Nbd2 {[%clk 0:02:55]}  O-O {[%clk 0:02:50]} 9. Re1 {[%clk 0:02:51]}  a5 {[%clk 0:02:46]} 10. a4 {[%clk 0:02:51]}  Na6 {[%clk 0:02:42]} 11. e4 {[%clk 0:02:49]}  dxe4 {[%clk 0:02:39]} 12. dxe4 {[%clk 0:02:49]}  Bh7 {[%clk 0:02:40]} 13. Nd4 {[%clk 0:02:48]}  Nc5 {[%clk 0:02:16]} 14. Qe2 {[%clk 0:02:36]}  Qc7 {[%clk 0:02:10]} 15. e5 {[%clk 0:02:22]}  Nd5 {[%clk 0:02:06]} 16. Ne4 {[%clk 0:02:19]}  Qxe5 {[%clk 0:01:55]} 17. Nxc6 {[%clk 0:02:01]}  Qxb2 {[%clk 0:01:54]} 18. Nxe7+ {[%clk 0:02:00]}  Nxe7 {[%clk 0:01:54]} 19. Nxc5 {[%clk 0:02:01]}  Rac8 {[%clk 0:01:38]} 20. Nxb7 {[%clk 0:01:29]}  Rxc2 {[%clk 0:01:37]} 21. Qe5 {[%clk 0:01:17]}  Rxf2 {[%clk 0:01:34]} 22. Qxb2 {[%clk 0:01:17]}  Rxb2 {[%clk 0:01:35]} 23. Nxa5 {[%clk 0:01:17]}  Nd5 {[%clk 0:01:07]} 24. Bxd5 {[%clk 0:00:53]}  exd5 {[%clk 0:01:06]} 25. Rf1 {[%clk 0:00:48]}  Ra8 {[%clk 0:00:51]} 26. Rac1 {[%clk 0:00:48]}  Be4 {[%clk 0:00:48]} 27. Rf2 {[%clk 0:00:37]}  Rxf2 {[%clk 0:00:48]} 28. Kxf2 {[%clk 0:00:38]}  Rxa5 {[%clk 0:00:48]} 29. Ke3 {[%clk 0:00:36]}  Kf8 {[%clk 0:00:48]} 30. Kd4 {[%clk 0:00:35]}  Ke7 {[%clk 0:00:48]} 31. Rc7+ {[%clk 0:00:35]}  Ke6 {[%clk 0:00:47]} 32. Rb7 {[%clk 0:00:28]}  Ra6 {[%clk 0:00:40]} 33. Rb8 {[%clk 0:00:19]}  f5 {[%clk 0:00:36]} 34. h4 {[%clk 0:00:15]}  g5 {[%clk 0:00:32]} 35. h5 {[%clk 0:00:15]}  f4 {[%clk 0:00:30]} 36. g4 {[%clk 0:00:12]}  f3 {[%clk 0:00:29]} 37. Ke3 {[%clk 0:00:09]}  Ke5 {[%clk 0:00:24]} 38. Re8+ {[%clk 0:00:09]}  Re6 {[%clk 0:00:24]} 39. Rf8 {[%clk 0:00:06]}  d4+ {[%clk 0:00:24]} 40. Kd2 {[%clk 0:00:05]}  Rf6 {[%clk 0:00:24]} 41. Re8+ {[%clk 0:00:05]}  Kf4 {[%clk 0:00:24]} 42. Ke1 {[%clk 0:00:04]}  Ke3 {[%clk 0:00:24]} 43. Kf1 {[%clk 0:00:04]}  d3 {[%clk 0:00:24]} 44. Re6 {[%clk 0:00:01]}  Rxe6 {[%clk 0:00:24]} 0-1


[Site "https://www.chess.com"]

[Event "Titled Tuesday Blitz September 27 Early 2022"]
[White "Martin, Lewis"]
[Black "Antonova, Nadezhda"]
[WhiteFideId "410551"]
[BlackFideId "14700182"]
[WhiteElo "2145"]
[BlackElo "1805"]
[Result "1-0"]
[Round "08"]
[TimeControl "180+1"]
[Date "2022.09.27"]
[WhiteClock "0:00:02"]
[BlackClock "0:00:01"]

1. e4 {[%clk 0:02:53]}  c5 {[%clk 0:02:59]} 2. Nf3 {[%clk 0:02:53]}  d6 {[%clk 0:02:59]} 3. d4 {[%clk 0:02:54]}  cxd4 {[%clk 0:02:59]} 4. Nxd4 {[%clk 0:02:54]}  Nf6 {[%clk 0:02:59]} 5. Nc3 {[%clk 0:02:55]}  a6 {[%clk 0:03:00]} 6. Bg5 {[%clk 0:02:55]}  Nbd7 {[%clk 0:02:59]} 7. Qe2 {[%clk 0:02:54]}  h6 {[%clk 0:02:59]} 8. Bh4 {[%clk 0:02:54]}  e6 {[%clk 0:02:56]} 9. f4 {[%clk 0:02:51]}  Be7 {[%clk 0:02:56]} 10. O-O-O {[%clk 0:02:51]}  O-O {[%clk 0:02:56]} 11. g4 {[%clk 0:02:49]}  Nh7 {[%clk 0:02:38]} 12. Bxe7 {[%clk 0:02:46]}  Qxe7 {[%clk 0:02:38]} 13. h4 {[%clk 0:02:46]}  b5 {[%clk 0:02:23]} 14. g5 {[%clk 0:02:45]}  Bb7 {[%clk 0:02:20]} 15. Bg2 {[%clk 0:02:41]}  b4 {[%clk 0:02:16]} 16. Na4 {[%clk 0:02:39]}  Rac8 {[%clk 0:02:13]} 17. b3 {[%clk 0:02:36]}  Nc5 {[%clk 0:02:07]} 18. Nxc5 {[%clk 0:02:33]}  dxc5 {[%clk 0:02:06]} 19. Nf3 {[%clk 0:02:29]}  c4 {[%clk 0:02:04]} 20. Ne5 {[%clk 0:02:25]}  cxb3 {[%clk 0:02:02]} 21. axb3 {[%clk 0:02:24]}  Qc7 {[%clk 0:01:52]} 22. Rh3 {[%clk 0:02:06]}  Rfd8 {[%clk 0:01:41]} 23. Rhd3 {[%clk 0:02:00]}  Rxd3 {[%clk 0:01:38]} 24. Rxd3 {[%clk 0:01:59]}  hxg5 {[%clk 0:01:36]} 25. hxg5 {[%clk 0:01:59]}  Nf8 {[%clk 0:01:36]} 26. Qd2 {[%clk 0:01:57]}  Qa5 {[%clk 0:01:33]} 27. Kb1 {[%clk 0:01:48]}  Qc7 {[%clk 0:01:24]} 28. Nc4 {[%clk 0:01:36]}  a5 {[%clk 0:01:20]} 29. Nd6 {[%clk 0:01:01]}  Rb8 {[%clk 0:01:12]} 30. Nxb7 {[%clk 0:00:54]}  Rxb7 {[%clk 0:01:08]} 31. e5 {[%clk 0:00:55]}  Rb8 {[%clk 0:01:05]} 32. Be4 {[%clk 0:00:55]}  g6 {[%clk 0:01:03]} 33. Rd6 {[%clk 0:00:48]}  a4 {[%clk 0:00:59]} 34. Qd4 {[%clk 0:00:29]}  a3 {[%clk 0:00:54]} 35. Rc6 {[%clk 0:00:25]}  Qd8 {[%clk 0:00:39]} 36. Qxd8 {[%clk 0:00:17]}  Rxd8 {[%clk 0:00:38]} 37. Rc4 {[%clk 0:00:13]}  Rb8 {[%clk 0:00:38]} 38. Rc7 {[%clk 0:00:12]}  Rd8 {[%clk 0:00:37]} 39. Bd3 {[%clk 0:00:09]}  Nd7 {[%clk 0:00:32]} 40. Rb7 {[%clk 0:00:06]}  Nc5 {[%clk 0:00:30]} 41. Rxb4 {[%clk 0:00:06]}  Nxd3 {[%clk 0:00:30]} 42. cxd3 {[%clk 0:00:06]}  Rxd3 {[%clk 0:00:31]} 43. Ka2 {[%clk 0:00:07]}  Rd1 {[%clk 0:00:16]} 44. Kxa3 {[%clk 0:00:06]}  Ra1+ {[%clk 0:00:16]} 45. Kb2 {[%clk 0:00:07]}  Rg1 {[%clk 0:00:17]} 46. Rc4 {[%clk 0:00:06]}  Rg2+ {[%clk 0:00:14]} 47. Kc3 {[%clk 0:00:06]}  Kf8 {[%clk 0:00:10]} 48. Rd4 {[%clk 0:00:05]}  Ke7 {[%clk 0:00:08]} 49. b4 {[%clk 0:00:05]}  Rg1 {[%clk 0:00:08]} 50. Kc4 {[%clk 0:00:03]}  Rc1+ {[%clk 0:00:07]} 51. Kb5 {[%clk 0:00:03]}  Rc8 {[%clk 0:00:07]} 52. Ka5 {[%clk 0:00:01]}  Ra8+ {[%clk 0:00:07]} 53. Kb5 {[%clk 0:00:02]}  Rb8+ {[%clk 0:00:08]} 54. Kc4 {[%clk 0:00:02]}  Rc8+ {[%clk 0:00:07]} 55. Kb3 {[%clk 0:00:03]}  Ra8 {[%clk 0:00:07]} 56. b5 {[%clk 0:00:03]}  Rb8 {[%clk 0:00:06]} 57. Kb4 {[%clk 0:00:03]}  Rc8 {[%clk 0:00:05]} 58. Rd6 {[%clk 0:00:03]}  Rc1 {[%clk 0:00:04]} 59. b6 {[%clk 0:00:04]}  Rb1+ {[%clk 0:00:04]} 60. Kc5 {[%clk 0:00:03]}  Rc1+ {[%clk 0:00:03]} 61. Kb5 {[%clk 0:00:04]}  Rb1+ {[%clk 0:00:04]} 62. Kc6 {[%clk 0:00:04]}  Rc1+ {[%clk 0:00:03]} 63. Kb7 {[%clk 0:00:04]}  Rb1 {[%clk 0:00:04]} 64. Rc6 {[%clk 0:00:03]}  Rb4 {[%clk 0:00:04]} 65. Rc7+ {[%clk 0:00:03]}  Ke8 {[%clk 0:00:04]} 66. Kc6 {[%clk 0:00:03]}  Rxf4 {[%clk 0:00:03]} 67. b7 {[%clk 0:00:02]}  Rb4 {[%clk 0:00:03]} 68. Rc8+ {[%clk 0:00:02]}  Ke7 {[%clk 0:00:02]} 69. b8=Q {[%clk 0:00:02]}  Rxb8 {[%clk 0:00:01]} 70. Rxb8 {[%clk 0:00:02]} 1-0


[Site "https://www.chess.com"]

[Event "Titled Tuesday Blitz September 27 Early 2022"]
[White "Martinez Alcantara, Jose Eduardo"]
[Black "Vogel, Roven"]
[WhiteFideId "3805662"]
[BlackFideId "12908088"]
[WhiteElo "2703"]
[BlackElo "2501"]
[Result "1-0"]
[Round "08"]
[TimeControl "180+1"]
[Date "2022.09.27"]
[WhiteClock "0:01:25"]
[BlackClock "0:00:19"]

1. e4 {[%clk 0:03:00]}  e5 {[%clk 0:02:59]} 2. Nf3 {[%clk 0:03:00]}  Nc6 {[%clk 0:02:59]} 3. Bb5 {[%clk 0:03:01]}  a6 {[%clk 0:02:59]} 4. Ba4 {[%clk 0:03:01]}  Nf6 {[%clk 0:02:59]} 5. O-O {[%clk 0:03:02]}  Be7 {[%clk 0:02:59]} 6. d3 {[%clk 0:03:00]}  b5 {[%clk 0:02:59]} 7. Bb3 {[%clk 0:03:00]}  d6 {[%clk 0:03:00]} 8. a4 {[%clk 0:03:00]}  Bd7 {[%clk 0:02:58]} 9. c3 {[%clk 0:03:01]}  O-O {[%clk 0:02:57]} 10. Bc2 {[%clk 0:03:01]}  h6 {[%clk 0:02:51]} 11. Re1 {[%clk 0:03:00]}  Re8 {[%clk 0:02:51]} 12. Nbd2 {[%clk 0:02:59]}  Bf8 {[%clk 0:02:50]} 13. Nf1 {[%clk 0:02:59]}  Ne7 {[%clk 0:02:49]} 14. Ng3 {[%clk 0:02:58]}  Ng6 {[%clk 0:02:49]} 15. h3 {[%clk 0:02:59]}  c5 {[%clk 0:02:48]} 16. d4 {[%clk 0:02:59]}  cxd4 {[%clk 0:02:37]} 17. cxd4 {[%clk 0:03:00]}  Qc7 {[%clk 0:02:29]} 18. Be3 {[%clk 0:02:57]}  Qb7 {[%clk 0:02:22]} 19. a5 {[%clk 0:02:56]}  Rad8 {[%clk 0:02:05]} 20. d5 {[%clk 0:02:55]}  Rc8 {[%clk 0:02:05]} 21. Bd3 {[%clk 0:02:55]}  Nf4 {[%clk 0:01:59]} 22. Bf1 {[%clk 0:02:55]}  g6 {[%clk 0:01:56]} 23. Qd2 {[%clk 0:02:53]}  Bg7 {[%clk 0:01:56]} 24. Rac1 {[%clk 0:02:51]}  Rxc1 {[%clk 0:01:46]} 25. Rxc1 {[%clk 0:02:52]}  Rc8 {[%clk 0:01:47]} 26. Bxf4 {[%clk 0:02:52]}  Rxc1 {[%clk 0:01:41]} 27. Qxc1 {[%clk 0:02:51]}  exf4 {[%clk 0:01:42]} 28. Qxf4 {[%clk 0:02:52]}  Qc7 {[%clk 0:01:42]} 29. Qd2 {[%clk 0:02:51]}  Bc8 {[%clk 0:01:31]} 30. Nd4 {[%clk 0:02:35]}  Bb7 {[%clk 0:01:25]} 31. Bd3 {[%clk 0:02:22]}  Nd7 {[%clk 0:01:19]} 32. Nge2 {[%clk 0:02:22]}  Ne5 {[%clk 0:01:12]} 33. b4 {[%clk 0:02:19]}  Bc8 {[%clk 0:01:07]} 34. f4 {[%clk 0:02:19]}  Nc4 {[%clk 0:00:56]} 35. Qc3 {[%clk 0:02:15]}  Bd7 {[%clk 0:00:54]} 36. Kf2 {[%clk 0:02:08]}  f5 {[%clk 0:00:50]} 37. exf5 {[%clk 0:02:05]}  gxf5 {[%clk 0:00:50]} 38. Bxc4 {[%clk 0:02:06]}  bxc4 {[%clk 0:00:50]} 39. Qe3 {[%clk 0:02:01]}  Qb7 {[%clk 0:00:42]} 40. Qe7 {[%clk 0:02:01]}  Bf8 {[%clk 0:00:30]} 41. Qd8 {[%clk 0:01:54]}  c3 {[%clk 0:00:22]} 42. Ne6 {[%clk 0:01:34]}  Bxe6 {[%clk 0:00:20]} 43. dxe6 {[%clk 0:01:35]}  c2 {[%clk 0:00:20]} 44. Qd7 {[%clk 0:01:25]}  Qe4 {[%clk 0:00:19]} 45. Qf7+ {[%clk 0:01:25]} 1-0


[Site "https://www.chess.com"]

[Event "Titled Tuesday Blitz September 27 Early 2022"]
[White "Matinian, Nikita"]
[Black "Tasev, Dejan"]
[WhiteFideId "24129100"]
[BlackFideId "936618"]
[WhiteElo "2422"]
[BlackElo "2256"]
[Result "1-0"]
[Round "08"]
[TimeControl "180+1"]
[Date "2022.09.27"]
[WhiteClock "0:01:28"]
[BlackClock "0:01:28"]

1. e4 {[%clk 0:03:00]}  c6 {[%clk 0:02:59]} 2. Nc3 {[%clk 0:03:00]}  d5 {[%clk 0:03:00]} 3. Nf3 {[%clk 0:03:00]}  Bg4 {[%clk 0:02:59]} 4. h3 {[%clk 0:03:01]}  Bxf3 {[%clk 0:03:00]} 5. Qxf3 {[%clk 0:03:01]}  e6 {[%clk 0:03:00]} 6. d4 {[%clk 0:02:59]}  Nf6 {[%clk 0:02:59]} 7. Be2 {[%clk 0:02:58]}  Be7 {[%clk 0:02:59]} 8. e5 {[%clk 0:02:57]}  Nfd7 {[%clk 0:02:58]} 9. Qg3 {[%clk 0:02:58]}  g6 {[%clk 0:02:56]} 10. Bh6 {[%clk 0:02:57]}  a6 {[%clk 0:02:51]} 11. O-O-O {[%clk 0:02:53]}  b5 {[%clk 0:02:50]} 12. h4 {[%clk 0:02:50]}  Nb6 {[%clk 0:02:49]} 13. h5 {[%clk 0:02:51]}  b4 {[%clk 0:02:45]} 14. Nb1 {[%clk 0:02:49]}  N8d7 {[%clk 0:02:41]} 15. hxg6 {[%clk 0:02:43]}  hxg6 {[%clk 0:02:39]} 16. Bd2 {[%clk 0:02:32]}  Rxh1 {[%clk 0:02:31]} 17. Rxh1 {[%clk 0:02:33]}  Nf8 {[%clk 0:02:29]} 18. a3 {[%clk 0:02:05]}  a5 {[%clk 0:02:22]} 19. Rh8 {[%clk 0:02:04]}  Qc7 {[%clk 0:02:10]} 20. axb4 {[%clk 0:01:44]}  axb4 {[%clk 0:02:08]} 21. Qb3 {[%clk 0:01:44]}  c5 {[%clk 0:01:57]} 22. Bb5+ {[%clk 0:01:44]}  Kd8 {[%clk 0:01:42]} 23. Bh6 {[%clk 0:01:43]}  c4 {[%clk 0:01:41]} 24. Qf3 {[%clk 0:01:42]}  Nd7 {[%clk 0:01:35]} 25. Qxf7 {[%clk 0:01:37]}  c3 {[%clk 0:01:32]} 26. Bxf8 {[%clk 0:01:30]}  cxb2+ {[%clk 0:01:28]} 27. Kd1 {[%clk 0:01:28]} 1-0


[Site "https://www.chess.com"]

[Event "Titled Tuesday Blitz September 27 Early 2022"]
[White "Matveeva, Olga"]
[Black "Ravi, Thandalam Shanmugam"]
[WhiteFideId "24107018"]
[BlackFideId "5000238"]
[WhiteElo "2056"]
[BlackElo "2063"]
[Result "0-1"]
[Round "08"]
[TimeControl "180+1"]
[Date "2022.09.27"]
[WhiteClock "0:00:04"]
[BlackClock "0:00:24"]

1. d4 {[%clk 0:03:00]}  Nf6 {[%clk 0:02:57]} 2. c4 {[%clk 0:03:00]}  e6 {[%clk 0:02:56]} 3. g3 {[%clk 0:03:01]}  d5 {[%clk 0:02:55]} 4. Nf3 {[%clk 0:03:00]}  dxc4 {[%clk 0:02:55]} 5. Bg2 {[%clk 0:03:00]}  a6 {[%clk 0:02:55]} 6. O-O {[%clk 0:02:57]}  Nc6 {[%clk 0:02:56]} 7. e3 {[%clk 0:02:51]}  Rb8 {[%clk 0:02:52]} 8. Nfd2 {[%clk 0:02:50]}  e5 {[%clk 0:02:52]} 9. Bxc6+ {[%clk 0:02:49]}  bxc6 {[%clk 0:02:50]} 10. dxe5 {[%clk 0:02:49]}  Ng4 {[%clk 0:02:50]} 11. Nxc4 {[%clk 0:02:46]}  Be6 {[%clk 0:02:43]} 12. Nbd2 {[%clk 0:02:41]}  Bb4 {[%clk 0:02:43]} 13. Qc2 {[%clk 0:02:38]}  h5 {[%clk 0:02:39]} 14. a3 {[%clk 0:02:32]}  h4 {[%clk 0:02:31]} 15. axb4 {[%clk 0:02:21]}  hxg3 {[%clk 0:02:28]} 16. hxg3 {[%clk 0:02:15]}  Qg5 {[%clk 0:02:27]} 17. Nd6+ {[%clk 0:01:46]}  cxd6 {[%clk 0:02:14]} 18. Qxc6+ {[%clk 0:01:44]}  Bd7 {[%clk 0:02:14]} 19. Qxd6 {[%clk 0:01:41]}  Rc8 {[%clk 0:01:53]} 20. Nf3 {[%clk 0:01:35]}  Qh5 {[%clk 0:01:47]} 21. Nh4 {[%clk 0:01:35]}  g5 {[%clk 0:01:41]} 22. Rd1 {[%clk 0:01:28]}  Rd8 {[%clk 0:01:35]} 23. Rxa6 {[%clk 0:01:00]}  gxh4 {[%clk 0:01:34]} 24. e6 {[%clk 0:00:33]}  fxe6 {[%clk 0:01:22]} 25. Ra8 {[%clk 0:00:31]}  Rxa8 {[%clk 0:01:13]} 26. Qxd7+ {[%clk 0:00:30]}  Kf8 {[%clk 0:01:13]} 27. Qd6+ {[%clk 0:00:28]}  Kg7 {[%clk 0:01:13]} 28. Qe7+ {[%clk 0:00:24]}  Kg6 {[%clk 0:00:25]} 29. Qxe6+ {[%clk 0:00:19]}  Nf6 {[%clk 0:00:24]} 30. Rd6 {[%clk 0:00:14]}  Raf8 {[%clk 0:00:24]} 31. Qe4+ {[%clk 0:00:05]}  Kg7 {[%clk 0:00:24]} 32. Qe7+ {[%clk 0:00:05]}  Rf7 {[%clk 0:00:25]} 33. Qe6 {[%clk 0:00:04]}  hxg3 {[%clk 0:00:24]} 0-1


[Site "https://www.chess.com"]